Cogmind - Beta 13 @@@ ROGUE MODE // 2024.04.01 @ 00:19:41 Player: scarab Result: Self-destructed Performance ------------- Evolutions (2) 1000 Regions Visited (4) 800 Robots Destroyed (13) 65 Value Destroyed (304) 304 Prototype IDs (1) 20 Alien Tech Used (0) 0 Bonus (0) 0 TOTAL SCORE: 2189 Bonus ------- None Cogmind --------- Core Integrity 550/550 Matter 300/300 Energy 100/100 System Corruption 0% Temperature Cool (0) Movement Core (50) Location -8/Materials Parts ------- > --- POWER (4) -------- (None) > --- PROPULSION (2) --- (None) > --- UTILITY (2) ------ (None) > --- WEAPON (3) ------- (None) > --- INVENTORY (5) ---- Aluminum Leg Aluminum Leg Medium Storage Unit Visual Processing Unit Sensor Array Peak State ------------ > --- POWER ------------ Ion Engine Improved Ion Engine > --- PROPULSION ------- Aluminum Leg Improved Aluminum Leg > --- UTILITY ---------- Medium Storage Unit Thief Drone Bay > --- WEAPON ----------- Small Laser Small Laser Light Assault Rifle > --- INVENTORY -------- Aluminum Leg Aluminum Leg Aluminum Leg Compact Wheel Medium Storage Unit Medium Matter Pod Visual Processing Unit Sensor Array Targeting Computer Mining Claw [Rating: 18] Favorites ----------- Power Light Ion Engine Engine Light Ion Engine Propulsion Aluminum Leg Leg Aluminum Leg Utility Medium Storage Unit Device Field Recycling Unit Storage Medium Storage Unit Weapon Small Laser Energy Gun Small Laser Ballistic Gun Light Assault Rifle Build | -11 -10 -9 -9 -8 ------- Run | Yrd Mat Mat Min Mat Slots Evolved 4 | . . 2 . 2 Power 3 | . . 1 . 2 Propulsion . | . . . . . Utility . | . . . . . Weapon 1 | . . 1 . . Parts Attached 23 | 6 7 4 6 . Power 5 | 1 . 2 2 . Engine 5 | 1 . 2 2 . Core . | . . . . . Reactor . | . . . . . Propulsion 8 | 2 3 1 2 . Treads . | . . . . . Leg 8 | 2 3 1 2 . Wheel . | . . . . . Hover . | . . . . . Flight . | . . . . . Utility 6 | 1 3 . 2 . Device 3 | . 1 . 2 . Storage 3 | 1 2 . . . Processor . | . . . . . Hackware . | . . . . . Protection . | . . . . . Artifact . | . . . . . Weapon 4 | 2 1 1 . . Energy Gun 3 | 2 1 . . . Energy Cannon . | . . . . . Ballistic Gun 1 | . . 1 . . Ballistic Cannon . | . . . . . Launcher . | . . . . . Special Weapon . | . . . . . Impact Weapon . | . . . . . Slashing Weapon . | . . . . . Piercing Weapon . | . . . . . Special Melee Weapon . | . . . . . Unidentified Prototypes 1 | . . . 1 . Parts Lost 3 | . 1 . 2 . Power 1 | . . . 1 . Propulsion 2 | . 1 . 1 . Utility . | . . . . . Weapon . | . . . . . Highest Loss Streak 2 | . 1 . 2 . To Critical Strikes . | . . . . . Average Slot Usage (%) 86 | . 92 100 60 . Engine 17 | . 14 22 12 . Leg 20 | . 27 22 12 . Device 3 | . 10 . 4 . Storage 16 | . 14 22 9 . Energy Gun 20 | . 25 22 13 . Ballistic Gun 6 | . . 11 6 . Naked Turns 113 | . . . 113 . Heaviest Build 33 | 10 25 29 33 . Greatest Support 23 | 20 20 20 23 . Greatest Overweight (x) 2 | . 1 1 2 . Average Overweight (x) . | . . 1 . . Largest Inventory Capacity 10 | 8 10 10 10 . Average Capacity 8 | 6 8 10 8 . Most Carried 10 | 3 8 10 10 . Average Carried 7 | 2 6 8 7 . Final Capacity 10 | 8 10 10 5 5 Final Carried 9 | 3 8 9 5 5 Class Distribution -------------------- 46% | Gunner 39% | Mutant 11% | Scavenger-Skirmisher 3% | Scavenger-Gunner Dominant Class ---------------- Mutant | -10/Materials Gunner | -9/Materials Scavenger-Skirmisher | -9/Mines Scavenger-Skirmisher | -8/Materials Resources | -11 -10 -9 -9 -8 ----------- Run | Yrd Mat Mat Min Mat Matter Collected 533 | 234 99 136 64 . Remotely . | . . . . . Salvage Created 402 | . 121 125 156 . Parts 27 | . 12 7 8 . Haulers Intercepted . | . . . . . Recyclers Shooed . | . . . . . Parts Field Recycled . | . . . . . Retrieved Matter . | . . . . . Parts Self-Destructed . | . . . . . Prevented . | . . . . . Kills | -11 -10 -9 -9 -8 ------- Run | Yrd Mat Mat Min Mat Combat Hostiles Destroyed 12 | . 7 2 3 . Guns 12 | . 7 2 3 . Classes Destroyed 5 | . 2 2 1 . Watcher 1 | . . 1 . . Swarmer 6 | . 6 . . . Grunt 4 | . 1 1 2 . Duelist 1 | . . . 1 . Sentry 1 | . . 1 . . Best Kill Streak 4 | . 4 1 3 . Combat Bots Only 4 | . 4 1 3 . Max Kills in Single Turn 1 | . 1 1 1 . Gunslinging . | . . . . . Exploded . | . . . . . Melee . | . . . . . Uniques/NPCs Destroyed . | . . . . . Combat | -11 -10 -9 -9 -8 -------- Run | Yrd Mat Mat Min Mat Hostile Shots Fired 109 | . 51 19 39 . Missed 40 | . 16 12 12 . Damage Taken 975 | . 343 120 512 . Core 238 | . 69 20 149 . Absorbed by Shields . | . . . . . Core Remaining (%) 76 | 100 72 . 57 . Volleys Fired 31 | . 12 9 10 . Largest 3 | . 2 3 3 . Hottest 100 | . 80 100 100 . Shots Fired 73 | . 24 19 30 . Gun 73 | . 24 19 30 . Cannon . | . . . . . Launcher . | . . . . . Special . | . . . . . Kinetic 19 | . . 9 10 . Thermal 54 | . 24 10 20 . Explosive . | . . . . . Electromagnetic . | . . . . . Robot Hit Streak 6 | . 3 6 6 . Robot Miss Streak 5 | . 5 3 5 . Penetration Max . | . . . . . Secondary Targets 2 | . . . 2 . Max Gunslinging Chain 1 | . . . 1 . Shots Hit Robots 36 | . 11 10 15 . Core Hits 24 | . 8 6 10 . Critical Kills . | . . . . . Critical Parts Destroyed . | . . . . . Critical Strikes . | . . . . . Melee Attacks . | . . . . . Impact . | . . . . . Slashing . | . . . . . Piercing . | . . . . . Sneak Attacks . | . . . . . Combat Hostiles . | . . . . . Follow-up Attacks . | . . . . . Damage Inflicted 393 | . 123 91 179 . Guns 389 | . 119 91 179 . Cannons . | . . . . . Explosions . | . . . . . Melee . | . . . . . Ramming 4 | . 4 . . . Kinetic 72 | . . 36 36 . Thermal 317 | . 119 55 143 . Explosive . | . . . . . Electromagnetic . | . . . . . Impact . | . . . . . Slashing . | . . . . . Piercing . | . . . . . Highest Corruption . | . . . . . Average Corruption . | . . . . . Corruption Purged . | . . . . . Corruption Blocked . | . . . . . Overload Shots . | . . . . . Overflow Damage . | . . . . . Projectiles . | . . . . . Explosions . | . . . . . Melee . | . . . . . Knockbacks . | . . . . . Impact . | . . . . . Kinetic . | . . . . . Secondary . | . . . . . Self-Inflicted Damage . | . . . . . Shots . | . . . . . Rammed . | . . . . . Targets Rammed 1 | . 1 . . . Kicked 1 | . 1 . . . Crushed . | . . . . . Highest Temperature 361 | . 228 90 361 . Average Temperature 95 | . 77 33 155 . Received Heat Transfer 348 | . 120 45 183 . Effects 1 | . . . 1 . Shutdowns 1 | . . . 1 . Siege Activations . | . . . . . Robots Corrupted . | . . . . . Combat Hostiles . | . . . . . Parts Fried . | . . . . . Impact Corruptions . | . . . . . Robots Melted . | . . . . . Combat Hostiles . | . . . . . Parts Melted . | . . . . . Heat Transferred 725 | . 275 125 325 . Parts Sabotaged . | . . . . . Parts Stolen . | . . . . . Parts Stripped . | . . . . . Power Chain Reactions . | . . . . . Alert | -11 -10 -9 -9 -8 ------- Run | Yrd Mat Mat Min Mat Peak Influence 210 | . 210 204 60 . Initial 88 | . . 88 1 23 Average 87 | . 99 110 58 . Maximum Alert Level 1 | . 1 1 . . Low Security (%) 93 | 100 81 95 100 . Level 1 6 | . 18 4 . . Level 2 . | . . . . . Level 3 . | . . . . . Level 4 . | . . . . . Level 5 . | . . . . . High Security . | . . . . . Max Security . | . . . . . Squads Dispatched 4 | . . 4 . . Investigation . | . . . . . Extermination . | . . . . . Reinforcement 4 | . . 4 . . Assault . | . . . . . Garrison . | . . . . . Intercept . | . . . . . Searches Triggered . | . . . . . Construction Impeded . | . . . . . Haulers Reinforced . | . . . . . Active Scanning Responses . | . . . . . Cargo Convoy Interrupts . | . . . . . Stealth | -11 -10 -9 -9 -8 --------- Run | Yrd Mat Mat Min Mat Distress Signals 4 | . 1 3 . . Communications Jammed . | . . . . . Distress Signals . | . . . . . Times Spotted 24 | . 12 6 6 . Peak Tracking Total 6 | . 6 2 3 . Tactical Retreats 2 | . 1 1 . . Traps | -11 -10 -9 -9 -8 ------- Run | Yrd Mat Mat Min Mat Traps Triggered 2 | . 1 1 . . Indirectly . | . . . . . Trap Hack Attempts . | . . . . . Triggered . | . . . . . Disarmed . | . . . . . Reprogrammed . | . . . . . Reused . | . . . . . Traps Extracted . | . . . . . Installed . | . . . . . Triggered . | . . . . . Machines | -11 -10 -9 -9 -8 ---------- Run | Yrd Mat Mat Min Mat Machines Disabled . | . . . . . Max in Single Turn . | . . . . . Machines Repaired . | . . . . . Machines Dismantled . | . . . . . Machines Sabotaged . | . . . . . Overloaded Fab Kills . | . . . . . Hacking | -11 -10 -9 -9 -8 --------- Run | Yrd Mat Mat Min Mat Machines Accessed 4 | . 1 2 1 . Terminals 2 | . 1 1 . . Fabricators . | . . . . . Repair Stations 1 | . . 1 . . Recycling Units . | . . . . . Scanalyzers . | . . . . . Garrison Access . | . . . . . Total Hacks 7 | . 2 4 1 . Successful 4 | . 1 2 1 . Failed 3 | . 1 2 . . Catastrophic . | . . . . . Database Lockouts . | . . . . . Manual . | . . . . . Terminals 5 | . 2 3 . . Fabricators . | . . . . . Repair Stations 1 | . . 1 . . Recycling Units . | . . . . . Scanalyzers . | . . . . . Garrison Access . | . . . . . Terminal Hacks 4 | . 1 2 1 . Record 1 | . . 1 . . Open Door 1 | . . . 1 . Alert Level 1 | . 1 . . . Dispatch Records 1 | . . 1 . . Fabricator Hacks . | . . . . . Repair Station Hacks . | . . . . . Recycling Unit Hacks . | . . . . . Scanalyzer . | . . . . . Garrison Access Hacks . | . . . . . Unauthorized Hacks . | . . . . . Terminals . | . . . . . Fabricators . | . . . . . Repair Stations . | . . . . . Recycling Units . | . . . . . Scanalyzers . | . . . . . Garrison Access . | . . . . . Data Cores Recovered . | . . . . . Used . | . . . . . Hacking Detections 2 | . . 2 . . Full Trace Events . | . . . . . Feedback Events . | . . . . . Feedback Blocked . | . . . . . Robot Schematics Acquired . | . . . . . Robots Built . | . . . . . Authchips . | . . . . . Time . | . . . . . Total Robot Build Rating . | . . . . . Part Schematics Acquired . | . . . . . Parts Built . | . . . . . Authchips . | . . . . . Time . | . . . . . Total Part Build Rating . | . . . . . Parts Repaired . | . . . . . Time . | . . . . . Parts Recycled . | . . . . . Recycled Matter . | . . . . . Retrieved Matter . | . . . . . Retrieved Components . | . . . . . Parts Scanalyzed . | . . . . . Part Schematics Acquired . | . . . . . Parts Damaged . | . . . . . Bothacking | -11 -10 -9 -9 -8 ------------ Run | Yrd Mat Mat Min Mat Used RIF Installer . | . . . . . Robots Hacked . | . . . . . Non-combat . | . . . . . Combat . | . . . . . Robot Hacks Applied . | . . . . . Relay Couplers Released . | . . . . . Fabnet Peak Effective % . | . . . . . Robots Rewired . | . . . . . Allies Hacked . | . . . . . Hacks Repelled . | . . . . . Allies | -11 -10 -9 -9 -8 -------- Run | Yrd Mat Mat Min Mat Total Allies . | . . . . . Largest Group . | . . . . . Highest-Rated Group . | . . . . . Highest-Rated Ally . | . . . . . Total Orders . | . . . . . Ally Attacks . | . . . . . Total Damage . | . . . . . Kills . | . . . . . Allies Corrupted . | . . . . . Allies Melted . | . . . . . Intel | -11 -10 -9 -9 -8 ------- Run | Yrd Mat Mat Min Mat Robot Analysis Total . | . . . . . Derelict Logs Recovered 1 | . . . 1 . Drone Launches . | . . . . . Drone Recoveries . | . . . . . Exploration | -11 -10 -9 -9 -8 ------------- Run | Yrd Mat Mat Min Mat Turns Passed 1124 | 64 282 473 305 . Spaces Moved 700 | 48 184 230 238 . Core 180 | 7 . . 173 . Treads . | . . . . . Legs 520 | 41 184 230 65 . Wheels . | . . . . . Hover . | . . . . . Flight . | . . . . . Fastest Speed 50 | 50 120 190 50 . Average Speed 133 | 109 124 190 89 . Slowest Speed 260 | 120 190 190 260 . Overloaded Moves . | . . . . . Propulsion Burnouts . | . . . . . Robots Hopped . | . . . . . Cave-ins Triggered . | . . . . . Exploration Rate (%) 21 | 4 34 23 44 1 Regions Visited 4 Branch Regions 1 Pre-discovered Areas . | . . . . . Known Exits Taken . | . . . . . Unknown Exits Taken 4 | 1 1 1 1 . Scrap Searched 1 | . . . 1 . Spaces Dug . | . . . . . Terrain Destroyed . | . . . . . Melee . | . . . . . Projectile . | . . . . . AOE . | . . . . . Terrain Rammed . | . . . . . Walls Destroyed . | . . . . . Machines Disabled . | . . . . . Actions | -11 -10 -9 -9 -8 --------- Run | Yrd Mat Mat Min Mat Total 829 | 57 212 254 306 . Wait 55 | . . 5 50 . Move 696 | 47 183 229 237 . Hop . | . . . . . Pick Up 16 | 4 7 4 1 . Fast Attach 9 | 5 2 . 2 . Attach 6 | 1 3 2 . . Detach . | . . . . . Swap 8 | . 2 2 4 . Drop 7 | . 2 3 2 . Fire 31 | . 12 9 10 . Melee . | . . . . . Ram . | . . . . . Kick 1 | . 1 . . . Crush . | . . . . . Escape Stasis . | . . . . . Rewire . | . . . . . Trap . | . . . . . Miscellaneous . | . . . . . Route ------- -11/Scrapyard -10/Materials (discovered 2 exits: *Mat / [*Min]) -9/Materials -9/Mines -8/Materials History --------- Turn | Location | Event 7 | -11/Scrapyard | Discovered new exit (range 16) 65 | -11/Scrapyard | Entered Materials 173 | -10/Materials | Discovered new exit (range 6) 320 | -10/Materials | Discovered new exit (range 11) 326 | -10/Materials | Build established: Mutant 347 | -10/Materials | Entered another Materials area 347 | -9/Materials | Evolved 2 slots: Power x1, Weapon x1 648 | -9/Materials | Build established: Gunner 792 | -9/Materials | Discovered new exit (range 16) 820 | -9/Materials | Entered Mines 926 | -9/Mines | Learned 4 Materials zone layouts 975 | -9/Mines | Found the Drone Emporium 987 | -9/Mines | Found Prototype Device 988 | -9/Mines | Identified Thief Drone Bay 1012 | -9/Mines | Released all parts (9) 1051 | -9/Mines | Discovered new exit (range 13) 1125 | -9/Mines | Entered Materials 1125 | -8/Materials | Evolved 2 slots: Power x2 1125 | -8/Materials | Self-destructed Last Messages --------------- R-06 Scavenger collects Melee Analysis Suite. R-06 Scavenger collects Sml. Laser. G-34 Mercenary suffers critical hit (Burn). G-34 Mercenary destroyed. R-06 Scavenger collects Aluminum Leg. R-06 Scavenger collects Thief Drone Bay. G-34 Mercenary destroyed. Connecting with SHOP.Sys... Acquired 36 matter. Acquired 26 matter. EXIT=FOUND Searching scrap... Found VTOL Module. Found Hvy. EM Pulse Gun. Found Trap Extractor. Found Shield Generator. Found 12 Matter. PARAMETERS=POWER+2 LOCATION=UNKNOWN GOAL=ESCAPE Map ----- +----------------------------------------------------+ | ?????????????????????????????????????????????????? | | ?????????????????????????????????????????????????? | | ?????????????????????????????????????????????????? | | ?????????????????????????????????????????????????? | | ?????????????????????????????????????????????????? | | ?????????????????????????????????????????????????? | | ?????????????????????????????????????????????????? | | ?????????????????????????????????????????????????? | | ?????????????????????????????????????????????????? | | ?????????????????????????????????????????????????? | | ?????????????????????????????????????????????????? | | ??????????????????????????#??????????????????????? | | ????????????????????????##T####??????????????????? | | ???????????????????????# ??????????????????? | | ??????????????????????? ! ??????????????????? | | ??????????????????????? ??????????????????? | | ??????????????????????## ""??????????????????? | | ???????????????????????" """?????????????????? | | ???????????????????????Y ""??????????????????? | | ???????????????????????" "???????????????????? | | ???????????????????????# ???????????????????? | | ???????????????????????# ????????????????????? | | ???????????????????????#[ ?????????????????????? | | ???????????????????????# #?????????????????????? | | ???????????????????????# #?????????????????????? | | ???????????????????????# @ #?????????????????????? | | ???????????????????????# #?????????????????????? | | ???????????????????????#####?????????????????????? | | ?????????????????????????????????????????????????? | | ?????????????????????????????????????????????????? | | ?????????????????????????????????????????????????? | | ?????????????????????????????????????????????????? | | | | | | | | | | | | | | | | | | | | | | | | | | | | | | | | | | | | | +----------------------------------------------------+ Best States ------------- Heat Dissipation 28 Energy Generation 17 Energy Capacity 415 Matter Stores 300 Matter Capacity 300 Sight Range 16 Robot Scan Range 14 Terrain Scan Density 10 Evasion (%) 55 Item Schematics ----------------- None Robot Schematics ------------------ None Fabricated ------------ Nothing Alien Tech Used ----------------- None Achievements -------------- None Challenges ------------ None Game ------ Seed ForceFlyingRailgun Manual? 0 Play Time 00:14:44 Cumulative 3.0 hours Start 2024.03.31 @ 23:02:25 End 2024.04.01 @ 00:19:41 Sessions 1 Manual Loads 0 Difficulty Rogue Special Mode None Game No. 7 Rogue 7 Adventurer 0 Explorer 0 Win Type - Total 0 Types 0/0/0/0/0/0/0/0/0 Lore% 0 Gallery% 11 Achievement% 10 Wizard Run 0 Options --------- Layout 1 ASCII 0 Keyboard 0 Movement Numpad Keybinds 0 Fullscreen 2 Font 24/Smallcaps Map View 50x35 Zoom Use 0% Tactical HUD 0 Map Filters NONE Filters NONE Steam 1 RUN: b20bcd5f-b43d-463f-9fab-a4e17c725d75